[Event "IV Elllobregat Open Chess Tmnt"]
[Site "Sant Boi de Llobregat, Spain"]
[Date "2023.12.01"]
[Round "2.13"]
[White "Muradli, Mahammad"]
[Black "Iliaguev, Nisim"]
[Result "1-0"]
[TimeControl "90min/40moves + 15min/end + 30sec from move 1"]
[WhiteFideId "13409301"]
[BlackFideId "2817276"]
[WhiteElo "2550"]
[BlackElo "2409"]

1. Nf3 {[%clk 01:23:50]} {[%emt 00:07:09]} Nf6 {[%clk 01:30:43]} {[%emt
00:00:17]} 2. c4 {[%clk 01:24:09]} {[%emt 00:00:10]} e6 {[%clk 01:31:04]}
{[%emt 00:00:09]} 3. g3 {[%clk 01:24:30]} {[%emt 00:00:09]} d5 {[%clk
01:31:10]} {[%emt 00:00:25]} 4. d4 {[%clk 01:24:38]} {[%emt 00:00:22]} Bb4+
{[%clk 01:31:22]} {[%emt 00:00:18]} 5. Bd2 {[%clk 01:24:58]} {[%emt 00:00:11]}
Be7 {[%clk 01:31:46]} {[%emt 00:00:07]} 6. Bg2 {[%clk 01:24:55]} {[%emt
00:00:32]} O-O {[%clk 01:32:04]} {[%emt 00:00:12]} 7. O-O {[%clk 01:25:20]}
{[%emt 00:00:05]} c6 {[%clk 01:32:02]} {[%emt 00:00:31]} 8. Bf4 {[%clk
01:22:38]} {[%emt 00:03:12]} Nbd7 {[%clk 01:30:19]} {[%emt 00:02:14]} 9. Qc2
{[%clk 01:14:52]} {[%emt 00:08:16]} b6 {[%clk 01:17:56]} {[%emt 00:12:52]} 10.
Ne5 {[%clk 01:13:05]} {[%emt 00:02:17]} Nxe5 {[%clk 01:10:33]} {[%emt
00:07:54]} 11. dxe5 {[%clk 01:08:30]} {[%emt 00:05:05]} Nd7 {[%clk 01:10:40]}
{[%emt 00:00:22]} 12. h4 {[%clk 01:05:39]} {[%emt 00:03:21]} Bb7 {[%clk
01:06:44]} {[%emt 00:04:27]} 13. Rd1 {[%clk 01:02:40]} {[%emt 00:03:29]} Qc8
{[%clk 01:00:53]} {[%emt 00:06:20]} 14. Nc3 {[%clk 00:54:40]} {[%emt 00:08:29]}
Rd8 {[%clk 00:56:29]} {[%emt 00:04:54]} 15. cxd5 {[%clk 00:53:50]} {[%emt
00:01:21]} cxd5 {[%clk 00:55:15]} {[%emt 00:01:44]} 16. Rac1 {[%clk 00:53:54]}
{[%emt 00:00:26]} Nf8 {[%clk 00:45:56]} {[%emt 00:09:49]} 17. Qb3 {[%clk
00:46:28]} {[%emt 00:07:53]} Qb8 {[%clk 00:12:09]} {[%emt 00:34:20]} 18. h5
{[%clk 00:41:40]} {[%emt 00:05:17]} h6 {[%clk 00:12:20]} {[%emt 00:00:19]} 19.
Nb5 {[%clk 00:28:01]} {[%emt 00:14:09]} Nd7 {[%clk 00:12:34]} {[%emt 00:00:15]}
20. Qe3 {[%clk 00:22:58]} {[%emt 00:05:33]} a6 {[%clk 00:11:02]} {[%emt
00:02:03]} 21. Nd6 {[%clk 00:17:42]} {[%emt 00:05:46]} Bxd6 {[%clk 00:04:32]}
{[%emt 00:07:01]} 22. exd6 {[%clk 00:18:00]} {[%emt 00:00:12]} e5 {[%clk
00:03:43]} {[%emt 00:01:18]} 23. Bxe5 {[%clk 00:15:21]} {[%emt 00:03:08]} Nxe5
{[%clk 00:02:52]} {[%emt 00:01:21]} 24. Qxe5 {[%clk 00:15:39]} {[%emt
00:00:12]} Rxd6 {[%clk 00:02:52]} {[%emt 00:00:30]} 25. Bxd5 {[%clk 00:12:07]}
{[%emt 00:04:02]} Bxd5 {[%clk 00:02:31]} {[%emt 00:00:51]} 26. Rxd5 {[%clk
00:11:23]} {[%emt 00:01:14]} Re6 {[%clk 00:02:47]} {[%emt 00:00:14]} 27. Qxb8+
{[%clk 00:10:16]} {[%emt 00:01:37]} Rxb8 {[%clk 00:03:16]} {[%emt 00:00:01]} 28.
e3 {[%clk 00:10:33]} {[%emt 00:00:12]} Rbe8 {[%clk 00:03:43]} {[%emt 00:00:03]}
29. Rc7 {[%clk 00:06:15]} {[%emt 00:04:49]} Re5 {[%clk 00:02:33]} {[%emt
00:01:40]} 30. Rdd7 {[%clk 00:06:11]} {[%emt 00:00:35]} Rxh5 {[%clk 00:02:06]}
{[%emt 00:00:56]} 31. Rxf7 {[%clk 00:06:37]} {[%emt 00:00:04]} Rg5 {[%clk
00:02:27]} {[%emt 00:00:09]} 32. Kg2 {[%clk 00:05:27]} {[%emt 00:01:39]} Rg6
{[%clk 00:02:22]} {[%emt 00:00:36]} 33. Rfd7 {[%clk 00:03:44]} {[%emt
00:02:13]} h5 {[%clk 00:01:22]} {[%emt 00:01:31]} 34. Rd4 {[%clk 00:01:59]}
{[%emt 00:02:15]} Re5 {[%clk 00:01:23]} {[%emt 00:00:29]} 35. e4 {[%clk
00:00:51]} {[%emt 00:01:38]} h4 {[%clk 00:01:15]} {[%emt 00:00:39]} 36. Rd8+
{[%clk 00:01:19]} {[%emt 00:00:01]} Kh7 {[%clk 00:01:32]} {[%emt 00:00:13]} 37.
Rcc8 {[%clk 00:01:47]} {[%emt 00:00:02]} Rg4 {[%clk 00:00:41]} {[%emt
00:01:21]} 38. Rh8+ {[%clk 00:01:23]} {[%emt 00:00:54]} Kg6 {[%clk 00:01:10]}
39. Rc6+ {[%clk 00:00:53]} {[%emt 00:01:00]} Kf7 {[%clk 00:01:28]} {[%emt
00:00:12]} 40. Rxb6 {[%clk 00:15:32]} {[%emt 00:00:52]} Rgxe4 {[%clk 00:16:34]}
{[%emt 00:00:24]} 41. Rxh4 {[%clk 00:15:04]} {[%emt 00:00:58]} 1-0

[Event "IV Elllobregat Open Chess Tmnt"]
[Site "Sant Boi de Llobregat, Spain"]
[Date "2023.12.01"]
[Round "2.14"]
[White "Sankalp, Gupta"]
[Black "Levin, Guy"]
[Result "0-1"]
[TimeControl "90min/40moves + 15min/end + 30sec from move 1"]
[WhiteFideId "5097010"]
[BlackFideId "2824213"]
[WhiteElo "2523"]
[BlackElo "2404"]

1. e4 {[%clk 01:29:05]} {[%emt 00:01:45]} c5 {[%clk 01:30:28]} {[%emt
00:00:13]} 2. Nf3 {[%clk 01:29:28]} {[%emt 00:00:07]} d6 {[%clk 01:31:20]}
{[%emt 00:00:07]} 3. d4 {[%clk 01:29:54]} {[%emt 00:00:04]} cxd4 {[%clk
01:31:38]} {[%emt 00:00:12]} 4. Qxd4 {[%clk 01:30:21]} {[%emt 00:00:03]} Nc6
{[%clk 01:31:34]} {[%emt 00:00:34]} 5. Qe3 {[%clk 01:30:48]} {[%emt 00:00:03]}
g6 {[%clk 01:30:06]} {[%emt 00:01:58]} 6. h3 {[%clk 01:31:07]} {[%emt
00:00:11]} Bg7 {[%clk 01:30:15]} {[%emt 00:00:21]} 7. Nc3 {[%clk 01:30:41]}
{[%emt 00:00:55]} Nf6 {[%clk 01:29:13]} {[%emt 00:01:33]} 8. Bc4 {[%clk
01:31:06]} {[%emt 00:00:06]} O-O {[%clk 01:28:26]} {[%emt 00:01:17]} 9. O-O
{[%clk 01:31:30]} {[%emt 00:00:06]} a6 {[%clk 01:25:25]} {[%emt 00:03:31]} 10.
a4 {[%clk 01:26:36]} {[%emt 00:05:24]} Qc7 {[%clk 01:24:43]} {[%emt 00:01:12]}
11. Qe2 {[%clk 01:24:06]} {[%emt 00:03:00]} Bd7 {[%clk 01:14:21]} {[%emt
00:10:53]} 12. Rd1 {[%clk 01:19:16]} {[%emt 00:05:20]} Rac8 {[%clk 01:11:27]}
{[%emt 00:03:24]} 13. Be3 {[%clk 01:16:36]} {[%emt 00:03:10]} Na5 {[%clk
00:57:07]} {[%emt 00:14:50]} 14. Bd3 {[%emt 00:13:33]} Be6 {[%emt 00:12:16]} 15.
Nd4 {[%clk 00:47:01]} {[%emt 00:16:52]} Nc4 {[%clk 00:36:23]} {[%emt 00:09:38]}
16. Nxe6 {[%clk 00:33:49]} {[%emt 00:13:43]} fxe6 {[%clk 00:36:50]} {[%emt
00:00:02]} 17. Bxc4 {[%clk 00:33:32]} {[%emt 00:00:47]} Qxc4 {[%clk 00:37:17]}
{[%emt 00:00:03]} 18. Qxc4 {[%clk 00:33:57]} {[%emt 00:00:05]} Rxc4 {[%clk
00:37:34]} {[%emt 00:00:13]} 19. e5 {[%clk 00:34:26]} {[%emt 00:00:02]} Ne8
{[%clk 00:34:15]} {[%emt 00:03:48]} 20. exd6 {[%clk 00:27:43]} {[%emt
00:07:13]} exd6 {[%clk 00:33:45]} {[%emt 00:01:00]} 21. Bd2 {[%clk 00:19:29]}
{[%emt 00:08:44]} d5 {[%clk 00:29:56]} {[%emt 00:04:19]} 22. Rdc1 {[%clk
00:19:53]} {[%emt 00:00:05]} Nd6 {[%clk 00:27:29]} {[%emt 00:02:57]} 23. Nd1
{[%clk 00:20:21]} {[%emt 00:00:02]} Ne4 {[%clk 00:26:36]} {[%emt 00:01:23]} 24.
Be1 {[%clk 00:20:50]} {[%emt 00:00:02]} Bh6 {[%clk 00:26:38]} {[%emt 00:00:28]}
25. Ne3 {[%clk 00:21:14]} {[%emt 00:00:06]} Bxe3 {[%clk 00:26:30]} {[%emt
00:00:38]} 26. fxe3 {[%clk 00:21:41]} {[%emt 00:00:03]} Rfc8 {[%clk 00:26:30]}
{[%emt 00:00:29]} 27. c3 {[%clk 00:17:18]} {[%emt 00:04:53]} Nc5 {[%clk
00:26:48]} {[%emt 00:00:12]} 28. Rc2 {[%clk 00:16:03]} {[%emt 00:01:45]} Rxa4
{[%clk 00:26:33]} {[%emt 00:00:45]} 29. Rxa4 {[%clk 00:16:27]} {[%emt
00:00:07]} Nxa4 {[%clk 00:26:54]} {[%emt 00:00:09]} 30. Bg3 {[%clk 00:16:54]}
{[%emt 00:00:03]} b5 {[%clk 00:21:48]} {[%emt 00:05:36]} 31. Bd6 {[%clk
00:15:38]} {[%emt 00:01:46]} a5 {[%clk 00:18:37]} {[%emt 00:03:41]} 32. Rf2
{[%clk 00:10:59]} {[%emt 00:05:08]} Nb6 {[%clk 00:16:18]} {[%emt 00:02:49]} 33.
b3 {[%clk 00:10:36]} {[%emt 00:00:53]} Rc6 {[%clk 00:13:47]} {[%emt 00:03:01]}
34. Rf8+ {[%clk 00:10:10]} {[%emt 00:00:56]} Kg7 {[%clk 00:14:16]} {[%emt
00:00:01]} 35. Rd8 {[%clk 00:10:35]} {[%emt 00:00:06]} a4 {[%clk 00:11:55]}
{[%emt 00:02:51]} 36. bxa4 {[%clk 00:10:20]} {[%emt 00:00:45]} bxa4 {[%emt
00:01:59]} 37. Bb4 {[%clk 00:07:42]} {[%emt 00:01:15]} Kf6 {[%clk 00:07:39]}
{[%emt 00:05:09]} 38. Kf2 {[%clk 00:07:45]} {[%emt 00:00:28]} Kf5 {[%clk
00:05:38]} {[%emt 00:02:31]} 39. Kf3 {[%clk 00:05:55]} {[%emt 00:02:20]} Rc8
{[%clk 00:04:12]} {[%emt 00:01:55]} 40. Rd6 {[%clk 00:21:23]} {[%emt 00:00:02]}
Nc4 {[%clk 00:19:27]} {[%emt 00:00:14]} 41. Ra6 {[%clk 00:21:25]} {[%emt
00:00:29]} a3 {[%clk 00:19:06]} {[%emt 00:00:51]} 42. Ke2 {[%clk 00:15:04]}
{[%emt 00:06:50]} e5 {[%clk 00:13:58]} {[%emt 00:05:39]} 43. Kd3 {[%clk
00:15:09]} {[%emt 00:00:26]} Nb2+ {[%clk 00:14:10]} {[%emt 00:00:17]} 44. Ke2
{[%clk 00:09:38]} {[%emt 00:06:01]} Ke4 {[%clk 00:14:32]} {[%emt 00:00:08]} 45.
Bxa3 {[%clk 00:05:50]} {[%emt 00:04:18]} Rxc3 {[%clk 00:14:40]} {[%emt
00:00:21]} 46. Bf8 {[%clk 00:04:15]} {[%emt 00:02:06]} Rc2+ {[%clk 00:14:27]}
{[%emt 00:00:43]} 47. Kf1 {[%clk 00:04:42]} {[%emt 00:00:02]} Nc4 {[%clk
00:14:07]} {[%emt 00:00:51]} 0-1

[Event "IV Elllobregat Open Chess Tmnt"]
[Site "Sant Boi de Llobregat, Spain"]
[Date "2023.12.01"]
[Round "2.15"]
[White "Saydaliev, Saidakbar"]
[Black "Pranav, Anand"]
[Result "1-0"]
[TimeControl "90min/40moves + 15min/end + 30sec from move 1"]
[WhiteFideId "14203693"]
[BlackFideId "46626786"]
[WhiteElo "2426"]
[BlackElo "2520"]

1. e4 {[%clk 01:30:56]} {[%emt 00:00:03]} c5 {[%clk 01:30:51]} {[%emt
00:00:10]} 2. Nf3 {[%clk 01:31:11]} {[%emt 00:00:14]} d6 {[%clk 01:31:07]}
{[%emt 00:00:15]} 3. d4 {[%clk 01:29:51]} {[%emt 00:01:50]} cxd4 {[%clk
01:31:27]} {[%emt 00:00:10]} 4. Nxd4 {[%clk 01:30:15]} {[%emt 00:00:06]} Nf6
{[%clk 01:31:53]} {[%emt 00:00:04]} 5. Nc3 {[%clk 01:30:30]} {[%emt 00:00:14]}
a6 {[%clk 01:32:13]} {[%emt 00:00:11]} 6. Be3 {[%clk 01:25:56]} {[%emt
00:05:03]} e5 {[%clk 01:32:23]} {[%emt 00:00:19]} 7. Nb3 {[%clk 01:26:19]}
{[%emt 00:00:07]} Be6 {[%clk 01:32:48]} {[%emt 00:00:06]} 8. f3 {[%clk
01:26:09]} {[%emt 00:00:40]} h5 {[%clk 01:33:00]} {[%emt 00:00:17]} 9. Qd2
{[%clk 01:26:33]} {[%emt 00:00:07]} Nbd7 {[%clk 01:33:24]} {[%emt 00:00:06]} 10.
Nd5 {[%clk 01:26:32]} {[%emt 00:00:31]} Bxd5 {[%clk 01:33:48]} {[%emt
00:00:06]} 11. exd5 {[%clk 01:26:57]} {[%emt 00:00:05]} Qc7 {[%clk 01:34:16]}
{[%emt 00:00:03]} 12. c4 {[%clk 01:26:03]} {[%emt 00:01:24]} g6 {[%clk
01:30:59]} {[%emt 00:03:47]} 13. Na5 {[%clk 01:19:16]} {[%emt 00:07:17]} Bg7
{[%clk 01:30:09]} {[%emt 00:01:19]} 14. Rc1 {[%clk 01:16:35]} {[%emt 00:03:11]}
e4 {[%clk 01:26:22]} {[%emt 00:04:18]} 15. Be2 {[%clk 01:10:02]} {[%emt
00:07:02]} exf3 {[%clk 01:21:15]} {[%emt 00:05:37]} 16. gxf3 {[%clk 01:07:56]}
{[%emt 00:02:36]} O-O {[%clk 01:19:51]} {[%emt 00:01:53]} 17. O-O {[%clk
01:08:13]} {[%emt 00:00:14]} Rae8 {[%clk 01:07:38]} {[%emt 00:12:44]} 18. b4
{[%clk 01:08:35]} {[%emt 00:00:08]} Rxe3 {[%clk 01:00:57]} {[%emt 00:07:11]} 19.
Qxe3 {[%clk 01:08:35]} {[%emt 00:00:30]} Re8 {[%clk 01:01:19]} {[%emt
00:00:08]} 20. Qd2 {[%clk 01:07:39]} {[%emt 00:01:25]} Qb6+ {[%clk 01:01:27]}
{[%emt 00:00:23]} 21. Kh1 {[%clk 00:54:19]} {[%emt 00:13:49]} Bh6 {[%clk
00:59:00]} {[%emt 00:02:58]} 22. Qxh6 {[%clk 00:52:36]} {[%emt 00:02:13]} Rxe2
{[%clk 00:59:14]} {[%emt 00:00:15]} 23. a3 {[%clk 00:50:55]} {[%emt 00:02:12]}
Ne5 {[%clk 00:53:27]} {[%emt 00:06:17]} 24. Qg5 {[%clk 00:43:23]} {[%emt
00:08:02]} Kg7 {[%clk 00:48:14]} {[%emt 00:05:44]} 25. Rcd1 {[%clk 00:38:58]}
{[%emt 00:04:54]} Ra2 {[%clk 00:30:34]} {[%emt 00:18:10]} 26. Qc1 {[%clk
00:34:25]} {[%emt 00:05:02]} Qc7 {[%clk 00:19:32]} {[%emt 00:11:32]} 27. f4
{[%clk 00:29:50]} {[%emt 00:05:05]} Qc8 {[%clk 00:13:53]} {[%emt 00:06:10]} 28.
Rd2 {[%clk 00:27:45]} {[%emt 00:02:34]} Rxd2 {[%clk 00:13:04]} {[%emt
00:01:19]} 29. Qxd2 {[%clk 00:28:06]} {[%emt 00:00:09]} Qf5 {[%clk 00:13:15]}
{[%emt 00:00:18]} 30. Qe2 {[%clk 00:20:31]} {[%emt 00:08:06]} Nd3 {[%clk
00:13:02]} {[%emt 00:00:44]} 31. Nxb7 {[%clk 00:16:06]} {[%emt 00:04:54]} Ne4
{[%clk 00:13:20]} {[%emt 00:00:12]} 32. Qf3 {[%clk 00:15:50]} {[%emt 00:00:46]}
h4 {[%clk 00:08:09]} {[%emt 00:05:41]} 33. c5 {[%clk 00:09:02]} {[%emt
00:07:17]} Nef2+ {[%clk 00:06:13]} {[%emt 00:02:26]} 34. Kg2 {[%clk 00:05:56]}
{[%emt 00:03:36]} g5 {[%clk 00:02:03]} {[%emt 00:04:40]} 35. Nxd6 {[%clk
00:05:45]} {[%emt 00:00:42]} Qg6 {[%clk 00:02:05]} {[%emt 00:00:28]} 36. f5
{[%clk 00:05:30]} {[%emt 00:00:45]} Qh6 {[%clk 00:02:35]} 37. Qe3 {[%clk
00:02:24]} {[%emt 00:03:36]} h3+ {[%clk 00:02:34]} {[%emt 00:00:31]} 38. Kg1
{[%clk 00:02:50]} {[%emt 00:00:04]} Qh4 {[%clk 00:02:54]} {[%emt 00:00:11]} 39.
Rxf2 {[%clk 00:02:50]} {[%emt 00:00:30]} Nxf2 {[%clk 00:03:15]} {[%emt
00:00:08]} 40. Qxf2 {[%clk 00:18:12]} {[%emt 00:00:08]} Qg4+ {[%clk 00:16:04]}
{[%emt 00:02:41]} 41. Qg3 {[%clk 00:18:36]} {[%emt 00:00:07]} Qd4+ {[%clk
00:08:01]} {[%emt 00:08:32]} 42. Kf1 {[%clk 00:18:32]} {[%emt 00:00:34]} g4
{[%clk 00:08:27]} {[%emt 00:00:04]} 43. Ke2 {[%clk 00:16:12]} {[%emt 00:02:49]}
Qb2+ {[%clk 00:07:20]} {[%emt 00:01:36]} 44. Ke3 {[%clk 00:16:37]} {[%emt
00:00:07]} Qc1+ {[%clk 00:03:53]} {[%emt 00:03:58]} 45. Ke4 {[%clk 00:16:58]}
{[%emt 00:00:07]} Qc2+ {[%clk 00:02:59]} {[%emt 00:01:25]} 46. Kf4 {[%emt
00:00:30]} 1-0

[Event "IV Elllobregat Open Chess Tmnt"]
[Site "Sant Boi de Llobregat, Spain"]
[Date "2023.12.01"]
[Round "2.16"]
[White "Pranesh, M"]
[Black "Fiorito, Joaquin"]
[Result "1-0"]
[TimeControl "90min/40moves + 15min/end + 30sec from move 1"]
[WhiteFideId "35028600"]
[BlackFideId "180173"]
[WhiteElo "2519"]
[BlackElo "2398"]

1. e4 {[%clk 01:30:55]} {[%emt 00:00:04]} c6 {[%clk 01:30:48]} {[%emt
00:00:13]} 2. d4 {[%clk 01:31:13]} {[%emt 00:00:12]} d5 {[%clk 01:31:12]}
{[%emt 00:00:05]} 3. e5 {[%clk 01:31:31]} {[%emt 00:00:12]} Bf5 {[%clk
01:31:36]} {[%emt 00:00:06]} 4. Nf3 {[%clk 01:31:53]} {[%emt 00:00:09]} e6
{[%clk 01:32:01]} {[%emt 00:00:05]} 5. Be2 {[%clk 01:32:13]} {[%emt 00:00:09]}
c5 {[%clk 01:32:25]} {[%emt 00:00:06]} 6. O-O {[%clk 01:32:21]} {[%emt
00:00:23]} Nc6 {[%clk 01:32:50]} {[%emt 00:00:06]} 7. c3 {[%clk 01:32:42]}
{[%emt 00:00:09]} Bg4 {[%clk 01:32:55]} {[%emt 00:00:25]} 8. Nbd2 {[%clk
01:32:58]} {[%emt 00:00:13]} cxd4 {[%clk 01:33:18]} {[%emt 00:00:06]} 9. cxd4
{[%clk 01:33:18]} {[%emt 00:00:11]} a5 {[%clk 01:33:45]} {[%emt 00:00:03]} 10.
h3 {[%clk 01:33:24]} {[%emt 00:00:23]} Bh5 {[%clk 01:34:08]} {[%emt 00:00:07]}
11. Nb1 {[%clk 01:33:44]} {[%emt 00:00:11]} Bxf3 {[%clk 01:30:47]} {[%emt
00:03:50]} 12. Bxf3 {[%clk 01:33:35]} {[%emt 00:00:39]} Qb6 {[%clk 01:23:45]}
{[%emt 00:07:32]} 13. Be3 {[%clk 01:33:15]} {[%emt 00:00:50]} a4 {[%clk
01:20:17]} {[%emt 00:03:58]} 14. Nc3 {[%clk 01:30:04]} {[%emt 00:03:41]} Qxb2
{[%clk 01:06:14]} {[%emt 00:14:32]} 15. Qd3 {[%clk 01:24:43]} {[%emt 00:05:51]}
Qa3 {[%clk 00:58:37]} {[%emt 00:08:06]} 16. Rfb1 {[%clk 01:10:54]} {[%emt
00:14:19]} Bb4 {[%clk 00:56:01]} {[%emt 00:03:06]} 17. Qb5 {[%clk 01:09:58]}
{[%emt 00:01:26]} Bxc3 {[%clk 00:43:38]} {[%emt 00:12:53]} 18. Qxb7 {[%clk
01:08:54]} {[%emt 00:01:35]} Nd8 {[%clk 00:43:53]} {[%emt 00:00:15]} 19. Qxa8
{[%clk 01:09:08]} {[%emt 00:00:15]} Bxa1 {[%clk 00:44:16]} {[%emt 00:00:07]} 20.
Rb8 {[%clk 01:06:20]} {[%emt 00:03:19]} Qe7 {[%clk 00:43:31]} {[%emt 00:01:15]}
21. Bd2 {[%clk 01:04:43]} {[%emt 00:02:07]} Nh6 {[%clk 00:43:43]} {[%emt
00:00:17]} 22. Bb4 {[%clk 01:04:41]} {[%emt 00:00:32]} Qc7 {[%clk 00:42:32]}
{[%emt 00:01:41]} 23. Bd6 {[%clk 01:04:28]} {[%emt 00:00:43]} Qc1+ {[%clk
00:42:28]} {[%emt 00:00:34]} 24. Kh2 {[%clk 01:04:48]} {[%emt 00:00:10]} Ng4+
{[%clk 00:41:27]} {[%emt 00:01:30]} 25. hxg4 {[%clk 01:04:46]} {[%emt
00:00:32]} 1-0

[Event "IV Elllobregat Open Chess Tmnt"]
[Site "Sant Boi de Llobregat, Spain"]
[Date "2023.12.01"]
[Round "2.17"]
[White "Stribuk, Artiom"]
[Black "Lamard, Guillaume"]
[Result "1/2-1/2"]
[TimeControl "90min/40moves + 15min/end + 30sec from move 1"]
[WhiteFideId "13515659"]
[BlackFideId "600261"]
[WhiteElo "2420"]
[BlackElo "2514"]

1. c4 {[%emt 00:58:06]} e6 {[%emt 00:00:23]} 2. g3 {[%emt 00:00:25]} Nf6 {[%emt
00:00:08]} 3. Bg2 {[%emt 00:00:06]} d5 {[%emt 00:00:06]} 4. Nf3 {[%emt
00:00:08]} Be7 {[%emt 00:00:53]} 5. O-O {[%emt 00:00:08]} O-O {[%emt 00:00:04]}
6. d4 {[%emt 00:00:37]} c6 {[%emt 00:00:06]} 7. b3 {[%emt 00:00:05]} b6 {[%emt
00:00:04]} 8. Bb2 {[%emt 00:00:50]} Nbd7 {[%emt 00:00:04]} 9. Qc2 {[%emt
00:00:50]} Bb7 {[%emt 00:00:20]} 10. Nc3 {[%emt 00:00:20]} Ba6 {[%emt
00:00:26]} 11. Rfd1 {[%emt 00:15:14]} Qc8 {[%emt 00:11:08]} 12. Nd2 {[%emt
00:10:04]} b5 {[%emt 00:02:42]} 13. e4 {[%emt 00:01:37]} dxc4 {[%emt 00:02:06]}
14. bxc4 {[%emt 00:00:06]} bxc4 {[%emt 00:06:20]} 15. Ne2 {[%emt 00:16:37]} Rb8
{[%emt 00:00:35]} 16. Rab1 {[%emt 00:00:19]} Nb6 {[%emt 00:05:08]} 17. a4
{[%emt 00:24:57]} c5 {[%emt 00:15:08]} 18. d5 {[%emt 00:01:16]} exd5 {[%emt
00:01:19]} 19. Bxf6 {[%emt 00:00:19]} Bxf6 {[%emt 00:00:16]} 20. exd5 {[%emt
00:00:28]} g6 {[%emt 00:11:27]} 21. a5 {[%emt 00:03:32]} Nd7 {[%emt 00:00:31]}
22. Nxc4 {[%emt 00:01:09]} Rb4 {[%emt 00:02:36]} 23. Ne3 {[%emt 00:05:32]} Rxb1
{[%emt 00:17:11]} 24. Rxb1 {[%emt 00:00:06]} Qc7 {[%emt 00:00:03]} 25. Nc4
{[%emt 00:04:35]} Rb8 {[%emt 00:00:34]} 26. d6 {[%emt 00:02:04]} Rxb1+ {[%emt
00:01:32]} 27. Qxb1 {[%emt 00:00:01]} Qd8 {[%emt 00:02:17]} 28. Qe4 {[%emt
00:04:30]} Kg7 {[%emt 00:04:50]} 29. Nf4 {[%emt 00:03:35]} Qb8 {[%emt
00:01:32]} 30. h4 {[%emt 00:04:20]} Bxc4 {[%emt 00:07:55]} 31. Qxc4 Qxd6 {[%emt
00:00:07]} 32. Bd5 {[%emt 00:01:08]} Ne5 {[%emt 00:02:06]} 33. Qb5 {[%emt
00:00:18]} Qc7 {[%emt 00:01:24]} 34. a6 {[%emt 00:00:37]} c4 {[%emt 00:01:16]}
35. Qb7 {[%emt 00:00:56]} Bd8 {[%emt 00:01:59]} 36. Bxf7 {[%emt 00:00:18]} Qxf7
{[%emt 00:01:21]} 37. Ne6+ {[%emt 00:00:05]} Kf6 {[%emt 00:01:08]} 38. Nxd8
{[%emt 00:00:11]} Qxb7 {[%emt 00:00:26]} 39. axb7 {[%emt 00:00:15]} Nd7 {[%emt
00:00:04]} 40. Nc6 {[%emt 00:00:11]} c3 {[%emt 00:00:07]} 41. Nb4 {[%emt
00:01:29]} Ke5 {[%emt 00:06:38]} 42. Kf1 {[%emt 00:00:12]} Kd6 {[%emt
00:02:24]} 43. Ke2 {[%emt 00:00:18]} Kc7 {[%emt 00:00:06]} 44. Kd3 {[%emt
00:00:43]} Nc5+ {[%emt 00:03:22]} 45. Kxc3 {[%emt 00:07:43]} Ne4+ {[%emt
00:00:58]} 46. Kd4 {[%emt 00:00:04]} Nxf2 {[%emt 00:00:04]} 47. Ke3 {[%emt
00:01:18]} Nd1+ {[%emt 00:02:46]} 48. Kf4 {[%emt 00:00:29]} Nf2 {[%emt
00:00:32]} 49. Kg5 {[%emt 00:01:00]} Ne4+ {[%emt 00:00:53]} 50. Kh6 {[%emt
00:00:11]} Nxg3 {[%emt 00:00:40]} 51. Kxh7 {[%emt 00:00:08]} Nf5 {[%emt
00:00:05]} 52. Nc6 {[%emt 00:00:26]} Kxb7 {[%emt 00:00:13]} 53. Nxa7 {[%emt
00:00:07]} Nxh4 {[%emt 00:00:10]} 54. Kh6 {[%emt 00:00:27]} Kxa7 {[%emt
00:00:05]} 55. Kg5 {[%emt 00:00:05]} Kb7 {[%emt 00:00:06]} 56. Kxh4 {[%emt
00:00:05]} g5+ {[%emt 00:00:02]} 1/2-1/2

[Event "IV Elllobregat Open Chess Tmnt"]
[Site "Sant Boi de Llobregat, Spain"]
[Date "2023.12.01"]
[Round "2.18"]
[White "Prraneeth, Vuppala"]
[Black "Molenda, Marcin"]
[Result "1-0"]
[TimeControl "90min/40moves + 15min/end + 30sec from move 1"]
[WhiteFideId "46622373"]
[BlackFideId "1173065"]
[WhiteElo "2512"]
[BlackElo "2387"]

1. d4 {[%clk 01:23:03]} {[%emt 00:07:19]} Nf6 {[%clk 01:30:38]} {[%emt
00:00:23]} 2. c4 {[%clk 01:23:23]} {[%emt 00:00:11]} e6 {[%clk 01:31:03]}
{[%emt 00:00:06]} 3. Nf3 {[%clk 01:23:48]} {[%emt 00:00:04]} d5 {[%clk
01:31:22]} {[%emt 00:00:12]} 4. g3 {[%clk 01:24:01]} {[%emt 00:00:16]} dxc4
{[%clk 01:31:46]} {[%emt 00:00:06]} 5. Bg2 {[%clk 01:24:22]} {[%emt 00:00:09]}
a6 {[%clk 01:32:11]} {[%emt 00:00:06]} 6. Ne5 {[%clk 01:24:21]} {[%emt
00:00:29]} Bb4+ {[%clk 01:16:41]} {[%emt 00:16:00]} 7. Nc3 {[%clk 01:24:08]}
{[%emt 00:00:44]} Nd5 {[%clk 01:14:56]} {[%emt 00:02:16]} 8. O-O {[%clk
01:24:17]} {[%emt 00:00:21]} Nxc3 {[%clk 00:57:48]} {[%emt 00:17:39]} 9. bxc3
{[%clk 01:24:22]} {[%emt 00:00:25]} Bxc3 {[%clk 00:57:58]} {[%emt 00:00:21]} 10.
Rb1 {[%clk 01:24:03]} {[%emt 00:00:48]} Bxd4 {[%clk 00:49:50]} {[%emt
00:08:37]} 11. Nxc4 {[%clk 01:21:11]} {[%emt 00:03:22]} O-O {[%clk 00:47:12]}
{[%emt 00:03:08]} 12. Ba3 {[%clk 01:19:10]} {[%emt 00:02:31]} Re8 {[%clk
00:44:18]} {[%emt 00:03:25]} 13. e3 {[%clk 01:09:56]} {[%emt 00:09:44]} Ba7
{[%clk 00:38:14]} {[%emt 00:06:34]} 14. Rxb7 {[%clk 01:04:49]} {[%emt
00:05:37]} Nd7 {[%clk 00:38:06]} {[%emt 00:00:37]} 15. Rb2 {[%clk 00:57:55]}
{[%emt 00:07:24]} Rb8 {[%clk 00:38:15]} {[%emt 00:00:22]} 16. Rd2 {[%clk
00:58:16]} {[%emt 00:00:09]} c5 {[%clk 00:26:31]} {[%emt 00:12:14]} 17. Ne5
{[%clk 00:54:35]} {[%emt 00:04:11]} Qa5 {[%clk 00:21:37]} {[%emt 00:05:23]} 18.
Nxd7 {[%clk 00:53:05]} {[%emt 00:02:00]} Qxa3 {[%clk 00:21:54]} {[%emt
00:00:13]} 19. Nxb8 {[%clk 00:53:22]} {[%emt 00:00:13]} Bxb8 {[%clk 00:22:21]}
{[%emt 00:00:03]} 20. Rd8 {[%clk 00:53:10]} {[%emt 00:00:41]} Kf8 {[%clk
00:22:48]} {[%emt 00:00:03]} 21. Bc6 {[%clk 00:53:16]} {[%emt 00:00:25]} 1-0